bitfinex-derivatives/quotes_ETHF0:USTF0_20251216
["timestamp","ask_amount","ask_price","bid_price","bid_amount"]
[1765900740508,44.0078,2961.1,2960.3,6.6144]
[1765900740708,0.00506877,2961.0,2960.4,0.00506877]
[1765900740908,0.00506877,2961.0,2960.4,0.00748765]
[1765900741304,0.00412557,2961.1,2961.0,3.4066]
[1765900742012,0.00412557,2961.1,2960.6,3.2078]
[1765900742313,0.00919434,2961.1,2960.9,3.2078]
[1765900742515,0.00919434,2961.1,2960.6,3.2078]
[1765900742912,0.00919434,2961.1,2960.9,3.2078]
[1765900743112,3.27445,2962.3,2961.6,3.4066]
[1765900743314,3.27445,2962.3,2961.6,6.6144]
[1765900743611,3.27445,2962.3,2961.6,3.4066]
[1765900744008,0.00506877,2962.2,2961.6,3.4066]
[1765900745106,3.2078,2962.0,2961.6,3.0607]
[1765900745311,0.00506877,2962.2,2961.6,3.0607]
[1765900745504,3.2078,2962.0,2961.6,3.0607]
[1765900745710,3.2078,2962.0,2960.8,6.6144]
[1765900745909,3.2078,2961.1,2960.4,3.21528765]
[1765900746212,3.2078,2960.8,2960.4,0.00748765]
[1765900746916,40.8,2960.7,2960.4,0.00748765]
[1765900747311,3.2078,2961.4,2960.8,3.0607]
[1765900747512,0.00506877,2962.2,2960.8,3.0607]
[1765900747513,3.2078,2962.1,2961.6,3.0607]
[1765900747714,0.00506877,2962.2,2961.6,3.0607]
[1765900747915,0.00506877,2962.2,2961.8,3.2078]
[1765900748416,0.00506877,2962.2,2961.8,3.37665]
[1765900748614,0.00506877,2962.2,2961.9,0.16884]
[1765900749412,44.0078,2963.2,2962.1,3.2078]
[1765900749809,40.8,2963.2,2962.1,9.2078]
[1765900750014,3.2078,2963.5,2963.2,3.0607]
[1765900750214,3.2078,2963.5,2962.7,3.2078]
[1765900750215,3.2078,2963.5,2963.1,0.00506877]
[1765900750420,1.48997713,2963.6,2961.6,3.2078]
[1765900750421,0.16881,2962.6,2961.6,3.2078]
[1765900750619,0.16881,2962.6,2961.6,3.0607]
[1765900750620,3.2078,2962.2,2961.6,3.0607]
[1765900750824,3.21059736,2962.2,2961.6,3.06446742]
[1765900751113,0.00279736,2962.2,2961.6,3.06446742]
[1765900751318,0.00279736,2962.2,2961.7,3.2078]
[1765900754920,0.00279736,2962.2,2962.0,3.2078]
[1765900755122,0.00279736,2962.2,2961.7,3.2078]
[1765900755822,0.00279736,2962.2,2962.0,3.2078]
[1765900756823,3.2078,2962.9,2962.4,3.0607]
[1765900757820,3.21077525,2962.9,2962.4,3.0607]
[1765900761820,3.37956525,2962.9,2962.0,3.2078]
[1765900762021,3.2078,2962.6,2962.0,3.2078]
[1765900762222,3.2078,2962.6,2962.4,3.0607]
[1765900763622,0.17176525,2962.9,2962.4,3.0607]
[1765900764015,0.00297525,2962.9,2962.4,3.0607]
[1765900766723,0.00297525,2962.9,2962.4,3.22951]
[1765900768022,0.00297525,2962.9,2962.4,3.0607]
[1765900768722,0.00297525,2962.9,2962.6,3.2078]
[1765900770124,3.21286877,2963.6,2962.6,3.2078]
[1765900770324,3.21286877,2963.6,2963.1,3.0607]
[1765900770325,0.00506877,2963.6,2963.1,3.0607]
[1765900770529,0.00506877,2963.6,2963.4,3.2078]
[1765900770830,0.00506877,2963.6,2963.2,3.21286877]
[1765900771125,0.00931738,2963.6,2963.2,3.21286877]
[1765900772025,0.00931738,2963.6,2963.2,0.00506877]
[1765900773632,0.00931738,2963.6,2963.4,2.8876]
[1765900774028,0.00931738,2963.6,2963.5,9.5773]
[1765900774328,0.00931738,2963.6,2963.4,2.8876]
[1765900774726,4.4607,2963.5,2963.4,2.8876]
[1765900774928,4.411,2963.3,2963.2,0.00506877]
[1765900775124,8.822,2963.3,2963.2,0.00506877]
[1765900775734,3.37656,2963.4,2963.2,0.00506877]
[1765900775934,3.2078,2963.4,2963.2,0.00506877]
[1765900776233,4.3615,2963.3,2963.2,0.00506877]
[1765900777235,7.5199,2963.3,2963.2,0.00506877]
[1765900777428,8.6242,2963.3,2963.2,0.00506877]
[1765900777936,11.832,2963.3,2963.2,0.00506877]
[1765900780035,3.2078,2963.3,2963.2,0.00506877]
[1765900780226,0.00931738,2963.6,2963.4,2.6371]
[1765900780423,0.00931738,2963.6,2963.5,9.0153]
[1765900781023,0.00931738,2963.6,2963.4,2.6371]
[1765900781024,8.2162,2963.3,2963.2,3.21286877]
[1765900781224,14.3295391,2963.3,2963.2,0.00506877]
[1765900781534,14.3295391,2963.3,2963.2,3.21286877]
[1765900781535,4.1081,2963.3,2963.2,3.21286877]
[1765900781832,4.1081,2963.3,2963.2,0.00506877]
[1765900782134,7.3159,2963.3,2963.2,0.00506877]
[1765900782734,11.3755,2963.3,2963.2,0.00506877]
[1765900783036,0.1688,2962.7,2962.2,3.2078]
[1765900783334,3.2078,2963.0,2962.8,2.6371]
[1765900783531,40.8,2963.2,2962.8,2.6371]
[1765900785632,7.8216,2962.8,2962.7,0.00506877]
[1765900786036,3.8578,2962.2,2962.1,3.2078]
[1765900786236,1.02969878,2962.7,2962.2,2.6371]
[1765900786430,0.1688,2962.7,2962.2,2.6371]
[1765900787239,0.86086686,2962.8,2962.2,2.64216877]
[1765900787439,1.02945414,2963.1,2962.4,3.2078]
[1765900787736,3.2078,2962.9,2962.2,2.64216877]
[1765900788044,0.16877,2963.1,2962.8,2.6371]
[1765900788830,10.6398,2962.9,2962.2,2.64216877]
[1765900789928,44.0078,2963.2,2962.9,4.4412]
[1765900790133,3.2078,2963.2,2962.9,4.4412]
[1765900791243,3.2078,2963.2,2962.8,2.6371]
[1765900791942,7.1963,2962.9,2962.4,3.2078]
[1765900792343,3.5747,2962.5,2962.4,3.2078]
[1765900792938,7.1494,2962.5,2962.4,3.2078]
[1765900793236,3.2078,2963.2,2962.4,3.2078]
[1765900793442,3.5279,2962.5,2962.4,3.2078]
[1765900795351,3.37657,2963.2,2962.8,2.6371]
[1765900795849,0.16877,2963.2,2962.8,2.6371]
[1765900796338,0.16877,2963.2,2963.1,9.0153]
[1765900796748,0.16877,2963.2,2963.1,4.4412]
[1765900796951,3.2078,2963.3,2963.1,4.4412]
[1765900797150,3.2078,2963.3,2963.2,9.0153]
[1765900797644,3.21711738,2963.6,2963.5,4.4412]
[1765900797842,3.21711738,2963.6,2963.5,9.0153]
[1765900798250,3.21711738,2963.6,2963.5,4.4412]
[1765900798440,0.00931738,2963.6,2963.5,4.4412]
[1765900799046,3.2505,2963.5,2963.4,2.6371]
[1765900799244,6.501,2963.5,2962.9,3.2078]
[1765900800141,2.56457324,2963.4,2962.8,2.6371]
[1765900800342,0.00931738,2963.6,2962.8,2.6371]
[1765900800552,3.2078,2963.4,2962.8,2.6371]
[1765900801056,3.2078,2963.3,2962.8,2.6371]
[1765900801542,3.21711738,2963.6,2963.4,2.6371]
[1765900801747,3.1593,2963.5,2963.4,2.6371]
[1765900802150,6.2732,2963.5,2962.8,2.6371]
[1765900802352,3.21711738,2963.6,2962.8,2.6371]
[1765900803051,0.00931738,2963.6,2962.8,2.6371]
[1765900803349,0.00931738,2963.6,2963.5,9.0153]
[1765900804441,0.00931738,2963.6,2961.0,2.5296]
[1765900804646,3.2078,2961.7,2961.0,2.5296]
[1765900804953,44.0078,2961.7,2961.0,2.5296]
[1765900805151,3.2078,2961.1,2961.0,2.5296]
[1765900805555,3.2078,2961.1,2961.0,8.37450196]
[1765900805948,3.21101819,2961.1,2961.0,8.35512607]
[1765900806749,3.2078,2962.0,2961.0,5.71802411]
[1765900807054,3.2078,2961.7,2961.0,2.51022411]
[1765900807248,3.2078,2961.2,2961.0,2.51022411]
[1765900807449,3.2078,2962.2,2961.7,2.5296]
[1765900807643,3.21560624,2962.2,2961.7,2.5296]
[1765900807854,3.2078,2961.9,2961.7,2.5296]
[1765900808051,3.2078,2961.9,2961.3,3.2078]
[1765900808252,0.00780624,2962.2,2961.0,2.51022411]
[1765900808253,3.2078,2961.6,2961.0,2.51022411]
[1765900808655,0.00780624,2962.2,2961.0,2.51022411]
[1765900808656,3.2078,2961.9,2961.7,2.5296]
[1765900809350,3.2078,2961.9,2961.0,2.51022411]
[1765900809657,3.2078,2961.1,2961.0,2.51022411]
[1765900810154,3.2078,2961.1,2961.0,0.00312459]
[1765900810457,3.2078,2961.4,2961.0,8.53272459]
[1765900810658,3.2078,2961.8,2961.1,3.2078]
[1765900811259,3.2078,2961.8,2961.7,2.5296]
[1765900811464,3.21560624,2962.2,2961.7,2.5296]
[1765900811955,3.2078,2961.8,2961.2,3.2078]
[1765900812160,3.2078,2961.8,2961.7,2.5296]
[1765900812564,0.00780624,2962.2,2961.7,5.7374]
[1765900813254,3.21560624,2962.2,2961.7,5.7374]
[1765900813561,3.38443624,2962.2,2961.3,3.2078]
[1765900813757,3.2078,2961.8,2961.0,5.74052459]
[1765900814059,3.2078,2961.7,2961.0,5.74052459]
[1765900814249,0.16886,2961.6,2961.0,3.21092459]
[1765900814454,40.80780624,2962.2,2961.0,3.21092459]
[1765900814455,3.2078,2961.1,2961.0,0.00312459]
[1765900814656,3.37667,2961.5,2961.0,0.00312459]
[1765900814854,3.2078,2961.5,2961.0,0.00312459]
[1765900815060,3.2078,2961.5,2961.0,2.53272459]
[1765900815261,3.2078,2961.5,2961.0,5.74052459]
[1765900815557,0.16883,2962.1,2961.3,3.2078]
[1765900815762,40.80780624,2962.2,2961.7,2.5296]
[1765900815763,3.2078,2962.0,2961.7,2.5296]
[1765900816065,0.00780624,2962.2,2961.7,2.5296]
[1765900816258,0.00780624,2962.2,2961.9,3.2078]
[1765900816852,0.00780624,2962.2,2961.7,2.5296]
[1765900817256,3.21560624,2962.2,2961.7,2.5296]
[1765900817659,0.00780624,2962.2,2961.7,2.5296]
[1765900819854,0.17663624,2962.2,2961.7,2.5296]
[1765900820055,0.16884,2961.9,2961.3,3.2078]
[1765900820264,0.16885,2961.8,2961.3,3.2078]
[1765900820469,0.16885,2961.8,2961.0,5.74052459]
[1765900820658,40.8,2961.7,2961.3,3.2078]
[1765900821067,3.2078,2962.0,2961.0,5.74052459]
[1765900821269,0.17663624,2962.2,2961.0,5.74052459]
[1765900821270,3.2078,2961.6,2961.0,2.53272459]
[1765900821468,3.2078,2962.0,2961.2,3.2078]
[1765900821670,40.8,2961.9,2961.2,3.2078]
[1765900822374,3.2078,2961.7,2961.2,3.2078]
[1765900822568,3.2078,2961.6,2961.0,2.53272459]
[1765900822767,0.16885,2961.8,2961.0,2.53272459]
[1765900823271,40.8,2961.9,2961.7,2.5296]
[1765900823875,3.2078,2962.1,2961.7,2.5296]
[1765900824278,0.00780624,2962.2,2961.7,2.5296]
[1765900825179,0.00780624,2962.2,2961.7,5.7374]
[1765900825568,0.00780624,2962.2,2962.0,3.2078]
[1765900825780,0.00780624,2962.2,2961.7,5.7374]
[1765900830679,0.00780624,2962.2,2962.1,8.6491]
[1765900830878,0.00780624,2962.2,2962.1,4.4905]
[1765900831775,0.00780624,2962.2,2961.7,5.7374]
[1765900832281,0.00780624,2962.2,2962.1,8.6491]
[1765900832475,0.00780624,2962.2,2961.7,5.7374]
[1765900832668,0.17663624,2962.2,2961.7,5.7374]
[1765900832870,4.3261,2961.8,2961.4,3.2078]
[1765900833073,3.2078,2961.8,2961.1,3.2078]
[1765900833276,0.16886,2961.7,2961.1,3.2078]
[1765900833483,40.8,2961.6,2961.1,3.2078]
[1765900833980,3.2078,2961.5,2961.0,0.00312459]
[1765900834278,3.2078,2961.1,2961.0,0.00312459]
[1765900835581,3.2078,2961.1,2961.0,3.17052459]
[1765900835769,10.863,2961.1,2961.0,0.00312459]
[1765900836174,11.03189,2961.1,2961.0,0.00312459]
[1765900836983,27.36089,2961.1,2961.0,0.00312459]
[1765900837682,27.35389,2961.1,2961.0,0.00312459]
[1765900838278,11.03189,2961.1,2961.0,0.00312459]
[1765900838581,0.16889,2961.1,2961.0,3.22842459]
[1765900838785,10.40709,2961.1,2961.0,0.00312459]
[1765900838985,3.2078,2961.2,2961.0,3.22842459]
[1765900839178,3.2078,2962.0,2961.4,10.6028]
[1765900839478,0.00780624,2962.2,2961.0,3.22842459]
[1765900839479,0.00780624,2962.2,2961.6,6.4331]
[1765900839885,0.16884,2961.9,2961.1,3.2078]
[1765900840074,16.48984,2961.9,2961.1,3.2078]
[1765900840280,0.16884,2961.9,2961.1,3.2078]
[1765900840586,0.16884,2961.9,2961.0,3.22842459]
[1765900840883,19.5278,2962.1,2961.7,3.2253]
[1765900841278,3.2078,2962.1,2961.7,3.2253]
[1765900842884,0.00780624,2962.2,2961.7,3.2253]
[1765900843178,0.00780624,2962.2,2961.7,6.4331]
[1765900844287,0.00780624,2962.2,2962.0,3.2078]
[1765900845580,0.00780624,2962.2,2961.7,6.4331]
[1765900845784,0.00780624,2962.2,2962.1,13.8106]
[1765900845987,0.00780624,2962.2,2962.1,10.6028]
[1765900846390,0.00780624,2962.2,2961.8,3.2078]
[1765900846886,10.2382,2961.9,2961.8,3.2078]
[1765900847191,3.2078,2962.0,2961.0,0.00312459]
[1765900847491,0.1689,2960.9,2960.8,3.36e-06]
[1765900847684,14.5929,2960.9,2960.8,3.36e-06]
[1765900847880,0.1689,2960.9,2960.8,3.36e-06]
[1765900848087,54.3339,2960.9,2960.8,3.36e-06]
[1765900848289,60.3339,2960.9,2960.8,3.36e-06]
[1765900848494,0.16892,2960.6,2959.5,3.2078]
[1765900848683,60.165,2960.9,2959.5,3.2078]
[1765900848684,3.2078,2960.2,2959.5,3.2078]
[1765900848886,3.2078,2959.9,2959.2,3.2253]
[1765900849384,3.2078,2959.6,2959.2,3.2253]
[1765900849580,3.2078,2959.6,2959.3,0.00506877]
[1765900850787,40.8,2959.5,2959.3,0.00506877]
[1765900852493,3.2078,2959.6,2959.3,0.00506877]
[1765900855791,0.00506877,2959.8,2959.3,0.00506877]
[1765900855992,3.21020685,2959.9,2959.3,0.00506877]
[1765900855993,6.85e-06,2959.9,2959.8,3.2253]
[1765900856196,6.85e-06,2959.9,2959.8,6.4331]
[1765900856393,3.2078,2960.8,2960.4,3.2253]
[1765900856998,0.00506877,2960.9,2960.4,6.4331]
[1765900857395,0.00759084,2960.9,2960.4,3.2253]
[1765900857590,0.00759084,2960.9,2960.4,6.4331]
[1765900857899,0.16892,2960.6,2960.1,3.2078]
[1765900858104,0.16892,2960.6,2959.8,3.2253]
[1765900858105,16.48992,2960.6,2959.8,3.2253]
[1765900858306,16.321,2960.6,2959.4,3.2078]
[1765900858506,3.2078,2960.0,2959.4,3.2078]
[1765900858908,12.449,2959.9,2959.4,3.2078]
[1765900859307,3.2078,2960.0,2959.4,3.2078]
[1765900860094,0.16896,2959.8,2959.3,0.00506877]
[1765900860395,11.642,2959.8,2959.3,0.00506877]
[1765900860601,11.642,2959.8,2959.6,3.2253]
[1765900860794,3.2078,2960.8,2959.6,3.2253]
[1765900860998,3.2078,2960.8,2960.3,3.2253]
[1765900861201,3.2078,2960.8,2959.8,3.2078]
[1765900861202,2.91178613,2960.6,2959.8,3.2078]
[1765900861508,0.16891,2960.7,2959.8,3.2078]
[1765900861509,3.2078,2960.5,2959.8,3.2078]
[1765900861704,3.2078,2960.8,2960.3,3.2253]
[1765900862201,3.2078,2960.8,2960.1,3.2078]
[1765900862202,0.16891,2960.7,2960.1,3.2078]
[1765900862410,2.91178613,2960.6,2960.1,3.2078]
[1765900862598,3.2078,2960.4,2959.6,3.2253]
[1765900862905,0.53548651,2960.9,2960.3,3.2253]
[1765900862906,3.2078,2960.8,2960.3,3.2253]
[1765900863111,0.17649084,2960.9,2960.4,3.2078]
[1765900863299,0.17649084,2960.9,2960.3,3.2253]
[1765900863903,0.17649084,2960.9,2960.4,3.2078]
[1765900864203,0.00759084,2960.9,2960.4,3.2078]
[1765900864509,0.00759084,2960.9,2960.3,3.2253]
[1765900864808,0.00759084,2960.9,2959.8,3.2078]
[1765900864809,0.16891,2960.8,2959.8,3.2078]
[1765900865003,3.37671,2960.8,2960.1,3.2078]
[1765900865199,3.37671,2960.8,2959.8,3.2078]
[1765900865404,0.16896,2959.9,2959.6,3.2253]
[1765900866595,0.16896,2959.9,2959.3,0.00506877]
[1765900867407,2.91178613,2959.9,2959.3,0.00506877]
[1765900867607,0.16899,2959.4,2959.3,0.00506877]
[1765900867806,3.2078,2960.1,2959.3,0.00506877]
[1765900868000,11.445,2960.0,2959.3,0.00506877]
[1765900868202,0.16897,2959.7,2959.3,0.00506877]
[1765900868609,40.8,2959.6,2959.4,3.2078]
[1765900868804,3.2078,2960.1,2959.6,3.2112]
[1765900869005,3.2078,2960.5,2959.8,3.2078]
[1765900869599,3.2078,2960.5,2959.6,3.2112]
[1765900869907,3.2078,2960.5,2959.8,3.2078]
[1765900870313,44.0078,2960.8,2960.1,3.2078]
[1765900870617,0.00759084,2960.9,2960.7,3.2078]
[1765900870810,0.00759084,2960.9,2960.6,3.2078]
[1765900871109,0.00759084,2960.9,2960.3,6.419]
[1765900871606,0.00759084,2960.9,2960.6,3.2078]
[1765900871801,3.2078,2961.3,2961.0,3.2112]
[1765900872112,0.16884,2961.9,2961.1,3.2078]
[1765900872300,3.2078,2961.5,2961.0,3.2112]
[1765900872616,0.16886,2961.7,2961.0,3.2112]
[1765900872617,3.2078,2961.2,2961.0,3.2112]
[1765900872910,3.21197849,2961.2,2961.0,3.2112]
[1765900873112,3.21197849,2961.2,2960.8,0.00506877]
[1765900873513,3.2078,2962.3,2961.7,3.2112]
[1765900873714,0.16879,2962.8,2961.7,3.2112]
[1765900873715,3.2078,2962.6,2961.7,3.2112]
[1765900873903,40.8,2962.5,2961.7,3.2112]
[1765900874105,0.16883,2962.2,2961.7,3.2112]
[1765900874508,44.0078,2962.5,2962.4,3.2112]
[1765900874814,0.0026338,2962.5,2962.4,3.2112]
[1765900877005,0.0026338,2962.5,2962.4,6.419]
[1765900877204,0.0026338,2962.5,2962.4,12.419]
[1765900877205,3.38e-05,2962.5,2962.4,12.419]
[1765900877511,0.16873,2963.9,2962.4,6.419]
[1765900877712,0.16873,2963.9,2963.5,3.2078]
[1765900878013,3.37653,2963.9,2963.2,3.2078]
[1765900878311,1.48413006,2963.6,2963.4,3.2078]
[1765900878709,0.00416151,2963.6,2963.4,3.2078]
[1765900879816,0.17291151,2963.6,2963.4,3.2078]
[1765900880715,2.90444687,2963.5,2963.2,0.00506877]
[1765900881212,16.311,2963.4,2963.2,0.00506877]
[1765900881411,0.16876,2963.3,2963.2,0.00506877]
[1765900881620,9.73528685,2963.3,2962.6,3.2078]
[1765900881910,0.16884,2961.9,2961.8,3.2078]
[1765900882313,0.16887,2961.5,2961.4,3.2078]
[1765900882818,40.96887,2961.5,2961.4,3.2078]
[1765900883013,0.16888,2961.3,2961.2,0.00506877]
[1765900883316,0.1732254,2961.3,2961.2,0.0078905]
[1765900883610,16.4822254,2961.3,2961.2,0.0078905]
[1765900883815,0.1689,2961.0,2960.5,3.2078]
[1765900884017,3.2078,2961.1,2960.5,3.2078]
[1765900884406,16.309,2961.0,2960.5,3.2078]
[1765900884813,16.309,2961.0,2960.5,3.21712177]
[1765900885019,0.16891,2960.7,2960.5,0.00932177]
[1765900885515,3.2078,2960.8,2960.5,0.00932177]
[1765900886217,0.16892,2960.6,2960.5,0.00932177]
[1765900886413,3.2078,2960.8,2960.5,0.00932177]
[1765900887118,0.52788137,2961.4,2960.7,3.2078]
[1765900887313,3.2078,2961.2,2960.5,0.00932177]
[1765900887821,0.1689,2961.0,2960.5,0.00932177]
[1765900888013,3.2078,2960.8,2960.5,0.00932177]
[1765900888513,19.5188,2961.2,2960.5,3.21712177]
[1765900888713,3.2078,2961.2,2961.0,3.2112]
[1765900889018,3.2078,2961.2,2960.5,3.21712177]
[1765900889019,3.2078,2961.2,2960.5,0.00932177]
[1765900889221,3.2078,2961.2,2960.5,3.21712177]
[1765900889611,3.37668,2961.2,2960.5,3.21712177]
[1765900889911,0.16889,2961.1,2960.5,3.21712177]
[1765900890117,3.2078,2960.9,2960.5,0.00932177]
[1765900890318,0.16891,2960.8,2960.5,0.00932177]
[1765900890912,16.47991,2960.8,2960.5,0.00932177]
[1765900891621,3.2078,2960.9,2960.5,0.00932177]
[1765900892418,3.2078,2961.2,2960.5,3.21712177]
[1765900893115,0.16889,2961.1,2960.5,3.21712177]
[1765900893315,3.2078,2961.2,2960.5,3.21712177]
[1765900893316,0.1689,2960.9,2960.5,3.21712177]
[1765900893710,3.73562812,2961.2,2960.5,3.21712177]
[1765900893909,0.16892,2960.6,2960.5,3.21712177]
[1765900894915,3.2078,2960.9,2960.5,0.00932177]
[1765900896323,0.16889,2961.1,2960.5,0.00932177]
[1765900896824,0.1689,2961.0,2960.5,0.00932177]
[1765900897715,3.2078,2961.2,2960.5,0.00932177]
[1765900897917,0.16892,2960.6,2960.5,0.00932177]
[1765900898321,3.37668,2961.2,2960.5,0.00932177]
[1765900898525,3.2078,2960.9,2960.5,0.00932177]
[1765900899420,3.2078,2961.2,2961.0,2.9074]
[1765900899624,0.0043454,2961.3,2961.0,2.9074]
[1765900901318,4.54e-05,2961.3,2961.1,3.2078]
[1765900901518,3.2078,2962.1,2961.7,2.9074]
[1765900901717,3.2078,2962.4,2961.9,3.2078]
[1765900901919,1.40517234,2963.1,2961.9,3.2078]
[1765900901920,3.2078,2962.7,2962.4,2.9074]
[1765900902332,3.2078,2963.0,2962.4,2.9074]
[1765900902521,1.46985868,2962.9,2962.5,3.2078]
[1765900903019,0.0088943,2962.9,2962.5,3.2078]
[1765900903224,3.2078,2963.6,2963.1,2.9074]
[1765900903419,4.10797192,2964.7,2963.1,6.1152]
[1765900903420,3.2078,2963.8,2963.1,6.1152]
[1765900904220,0.00506877,2963.7,2963.1,6.11904416]
[1765900906922,0.00506877,2963.7,2963.1,3.21164416]
[1765900907319,3.2078,2963.4,2963.1,0.00384416]
[1765900908123,1.9068,2963.1,2962.4,0.00506877]
[1765900908318,3.2078,2962.5,2962.4,0.00506877]
[1765900908518,9.37661,2962.5,2962.4,0.00506877]
[1765900908722,3.2078,2962.8,2962.4,0.00506877]
[1765900909021,3.2078,2963.4,2962.4,2.91246877]
[1765900909224,3.2078,2963.4,2962.6,3.2078]
[1765900909425,40.8,2963.6,2962.9,3.2078]
[1765900910025,3.2078,2963.5,2962.9,3.2078]
[1765900910328,0.16878,2963.1,2962.5,3.2078]
[1765900910529,0.16878,2963.0,2962.5,3.2078]
[1765900911032,16.3,2963.0,2962.5,3.2078]
[1765900911226,0.16881,2962.5,2962.4,0.00940978]
[1765900911930,3.2078,2962.9,2962.4,0.00940978]
[1765900912228,16.299,2962.8,2962.4,0.00940978]
[1765900912524,0.1688,2962.7,2962.4,2.91680978]
[1765900912725,0.16877,2963.3,2962.4,2.91680978]
[1765900912929,3.2078,2963.1,2962.4,2.91680978]
[1765900913136,0.16877,2963.3,2962.4,2.91680978]
[1765900913433,0.16877,2963.3,2962.5,3.2078]
[1765900913622,3.2078,2963.1,2962.4,0.00940978]
[1765900913825,3.2078,2962.7,2962.4,0.00940978]
[1765900914030,3.2078,2963.0,2962.4,2.91680978]
[1765900914228,0.05874816,2963.4,2962.5,3.2078]
[1765900914229,3.2078,2963.4,2962.5,3.2078]
[1765900914831,0.16877,2963.3,2962.4,2.91680978]
[1765900915032,0.16877,2963.3,2962.5,3.2078]
[1765900915231,0.16877,2963.2,2962.5,3.2078]
[1765900915433,3.37658,2963.1,2962.5,3.2078]
[1765900915637,0.16878,2963.0,2962.4,2.91680978]
[1765900915829,0.16881,2962.6,2962.4,0.00940978]
[1765900916036,0.16881,2962.5,2962.4,0.00940978]
[1765900916638,40.96881,2962.5,2962.4,0.00940978]
[1765900919234,0.16883,2962.1,2961.6,3.2078]
[1765900919432,0.16885,2961.9,2961.6,3.2078]
[1765900920041,0.16885,2961.7,2961.3,3.2078]
[1765900920237,0.16887,2961.4,2961.3,3.21163985]
[1765900920534,16.46387,2961.4,2961.3,3.21163985]
[1765900920925,26.03055093,2961.4,2960.5,3.2078]
[1765900921131,2.56423388,2960.8,2960.2,3.2078]
[1765900921331,5.77203388,2960.8,2960.2,3.2078]
[1765900921539,40.96891,2960.7,2960.2,3.2078]
[1765900921935,2.73316388,2960.4,2960.2,0.00294813]
[1765900922143,0.16893,2960.3,2960.2,0.00294813]
[1765900922733,57.26493,2960.3,2960.2,0.00294813]
[1765900923544,0.16894,2960.2,2960.0,0.00506877]
[1765900923839,3.37674,2960.2,2960.0,0.00506877]
[1765900924528,3.2078,2960.2,2960.0,0.00506877]
[1765900924738,40.8,2960.3,2960.0,0.00825098]
[1765900925035,62.86903388,2960.3,2960.0,0.00825098]
[1765900925237,0.16894,2960.2,2960.0,0.00825098]
[1765900926237,0.16895,2960.1,2960.0,0.00825098]
[1765900926435,0.16895,2960.0,2958.9,2.9074]
[1765900926631,3.2078,2959.5,2958.9,2.9074]
[1765900926829,3.2078,2959.2,2958.9,2.9074]
[1765900927035,16.46698,2959.5,2958.5,3.2078]
[1765900927036,2.56423388,2959.0,2958.5,3.2078]
[1765900927329,0.0078143,2959.0,2958.9,2.6994]
[1765900927530,0.0078143,2959.0,2958.5,0.00918548]
[1765900927531,0.0078143,2959.0,2958.5,3.21698548]
[1765900927845,0.0078143,2959.0,2958.5,0.00918548]
[1765900928234,40.8,2958.9,2958.5,0.00918548]
[1765900928742,43.36423388,2958.9,2958.5,0.00918548]
[1765900928945,3.2078,2958.8,2958.5,0.00918548]
[1765900929339,3.2078,2959.6,2958.9,2.6994]
[1765900929540,2.56423388,2959.4,2959.1,3.2078]
[1765900929739,2.56423388,2959.4,2958.5,0.00918548]
[1765900929740,40.8,2959.3,2959.0,3.2078]
[1765900929947,40.8,2959.3,2958.9,5.9072]
[1765900930446,40.80252549,2959.3,2958.9,5.9072]
[1765900930745,40.80252549,2959.3,2959.1,3.2078]
[1765900930939,0.00252549,2959.3,2959.1,3.2078]
[1765900931155,2.73316388,2960.4,2959.1,3.2078]
[1765900931343,2.73316388,2960.4,2959.8,3.2078]
[1765900931543,40.8,2960.3,2959.8,3.2078]
[1765900932350,0.00858368,2960.3,2960.2,3.2078]
[1765900933246,0.17751368,2960.3,2960.2,3.2078]
[1765900933441,2.52648368,2960.3,2959.3,3.2078]
[1765900933645,5.77203388,2959.7,2958.9,5.9072]
[1765900933843,16.301,2959.6,2958.9,5.9072]
[1765900934142,5.94100388,2959.7,2958.9,5.9072]
[1765900934342,5.77203388,2959.7,2958.9,5.9072]
[1765900934949,2.56423388,2959.7,2959.2,3.2078]
[1765900935149,3.2078,2959.6,2958.9,5.9072]
[1765900935548,3.2078,2959.6,2958.9,3.2078]
[1765900935549,0.16898,2959.5,2958.9,3.2078]
[1765900935746,2.73323388,2959.3,2958.9,3.2078]
[1765900936955,17.48923388,2959.3,2958.9,3.2078]
[1765900937343,0.169,2959.2,2958.9,3.2078]
[1765900937854,5.40899238,2959.6,2958.9,3.2078]
[1765900938257,40.8,2959.5,2958.9,3.2078]
[1765900938853,2.56423388,2959.0,2958.6,3.2078]
[1765900939157,3.2078,2958.7,2958.5,0.00918548]
[1765900939455,3.37683,2958.7,2958.5,0.00918548]
[1765900939753,3.2078,2959.0,2958.5,0.00918548]
[1765900940556,43.36423388,2959.5,2958.7,3.2078]
[1765900940757,0.16899,2959.4,2958.6,3.2078]
[1765900940950,0.16899,2959.4,2958.9,5.9072]
[1765900941160,0.16899,2959.4,2958.9,2.6994]
[1765900941353,5.77203388,2959.3,2958.7,3.2078]
[1765900941860,0.16903,2958.6,2958.5,0.00918548]
[1765900942057,0.16903,2958.6,2958.1,3.2078]
[1765900942259,0.16905,2958.3,2958.1,3.2078]
[1765900942457,40.8,2958.2,2958.1,3.2078]
[1765900942754,40.96905,2958.2,2957.7,3.2078]
[1765900943056,40.96905,2958.2,2957.7,3.21649666]
[1765900943057,40.8094028,2958.2,2957.7,3.21649666]
[1765900944657,0.0094028,2958.2,2957.7,3.21649666]
[1765900945052,0.0094028,2958.2,2958.0,3.2078]
[1765900945257,0.0094028,2958.2,2957.7,3.21649666]
[1765900945460,0.0094028,2958.2,2958.0,3.2078]
[1765900945651,2.8e-06,2958.2,2958.0,3.2078]
[1765900946054,2.8e-06,2958.2,2958.1,6.16906]
[1765900946650,40.8,2959.5,2958.3,0.16905]
[1765900946853,40.8,2959.5,2959.0,3.2078]
[1765900947256,40.96898,2959.5,2958.9,2.6994]
[1765900947456,2.73323388,2959.2,2958.7,3.2078]
[1765900947653,0.16901,2959.1,2958.4,3.2078]
[1765900947856,0.16901,2959.0,2958.4,3.2078]